bitfinex/quotes_SOLUSD_20241202
["timestamp","ask_amount","ask_price","bid_price","bid_amount"]
[1733127609484,4.37208463,225.98,225.93,26.81376189]
[1733127609871,4.37208463,226.0,225.97,26.81376189]
[1733127610079,4.37208463,226.02,225.99,26.81376189]
[1733127610269,4.37208463,226.02,225.89,0.12549]
[1733127610465,4.37208463,226.0,225.93,26.81376189]
[1733127610705,4.37208463,225.98,225.93,26.81376189]
[1733127610874,4.37208463,225.94,225.82,70.0]
[1733127611070,4.37208463,225.94,225.9,26.81376189]
[1733127612194,4.37208463,225.94,225.92,26.81376189]
[1733127612377,4.37208463,225.94,225.8,6.0684]
[1733127612578,4.37208463,225.91,225.9,26.81376189]
[1733127612878,4.37208463,225.91,225.88,26.81376189]
[1733127613074,4.37208463,225.91,225.8,6.0684]
[1733127613266,4.37208463,225.89,225.76,4.4294]
[1733127613472,4.37208463,225.85,225.82,26.81376189]
[1733127613668,4.37208463,225.85,225.76,4.4294]
[1733127613669,26.81376189,225.83,225.76,4.4294]
[1733127613997,26.81376189,225.79,225.76,4.4294]
[1733127614201,26.81376189,225.81,225.76,4.4294]
[1733127614383,23.776884,225.87,225.76,4.4294]
[1733127614704,26.81376189,225.82,225.76,4.4294]
[1733127614881,1.1068,225.86,225.76,31.24316189]
[1733127615077,1.1068,225.86,225.76,4.4294]
[1733127615273,1.1068,225.86,225.77,26.81376189]
[1733127615490,27.92056189,225.86,225.77,26.81376189]
[1733127615698,26.81376189,225.84,225.77,26.81376189]
[1733127615913,27.92056189,225.86,225.76,4.4294]
[1733127616077,27.92056189,225.86,225.77,26.81376189]
[1733127616575,27.92056189,225.86,225.79,26.81376189]
[1733127616779,1.1066,225.92,225.79,26.81376189]
[1733127616979,1.1066,225.92,225.76,4.4294]
[1733127616980,1.1066,225.92,225.81,26.81376189]
[1733127617189,23.82758249,225.98,225.83,26.81376189]
[1733127617190,0.77222453,225.91,225.83,26.81376189]
[1733127617391,26.81376189,225.93,225.85,26.81376189]
[1733127618176,26.81376189,225.91,225.83,26.81376189]
[1733127618395,26.81376189,225.91,225.76,4.4294]
[1733127618396,26.81376189,225.93,225.85,26.81376189]
[1733127618574,26.81376189,225.95,225.88,26.81376189]
[1733127618777,26.81376189,225.96,225.89,26.81376189]
[1733127619077,26.81376189,225.97,225.89,26.81376189]
[1733127619282,0.57252315,225.92,225.85,26.81376189]
[1733127619502,27.91966189,226.05,225.78,5.0]
[1733127619503,26.81376189,225.95,225.78,5.0]
[1733127619705,26.81376189,225.99,225.91,26.81376189]
[1733127619873,26.81376189,226.02,225.95,26.81376189]
[1733127620079,26.81376189,226.0,225.93,26.81376189]
[1733127620377,1.1059,226.05,225.86,0.12549]
[1733127620577,1.1059,226.05,225.82,6.5023]
[1733127620578,26.81376189,225.95,225.82,6.5023]
[1733127620787,26.81376189,225.95,225.88,26.81376189]
[1733127621194,26.81376189,225.98,225.9,26.81376189]
[1733127621395,26.81376189,226.01,225.94,26.81376189]
[1733127621599,26.81376189,226.03,225.95,26.81376189]
[1733127621975,26.81376189,226.01,225.93,26.81376189]
[1733127622222,26.81376189,225.97,225.9,26.81376189]
[1733127622719,26.81376189,225.95,225.88,26.81376189]
[1733127622888,26.81376189,225.96,225.88,26.81376189]
[1733127623089,26.81376189,225.98,225.91,26.81376189]
[1733127623715,26.81376189,225.98,225.83,26.81376189]
[1733127623716,26.81376189,225.98,225.9,26.81376189]
[1733127624099,26.81376189,225.99,225.92,26.81376189]
[1733127624425,26.81376189,226.03,225.96,26.81376189]
[1733127624596,26.81376189,226.01,225.94,26.81376189]
[1733127625115,26.81376189,226.02,225.95,26.81376189]
[1733127625696,26.81376189,226.05,225.98,26.81376189]
[1733127625949,26.81376189,226.07,225.99,26.81376189]
[1733127626114,26.81376189,226.05,225.98,26.81376189]
[1733127626311,6.1056,226.12,225.95,26.81376189]
[1733127626312,26.81376189,226.02,225.95,26.81376189]
[1733127626619,15.589,226.15,225.93,25.0]
[1733127626928,26.81376189,226.16,225.98,6.239]
[1733127627213,1.1053,226.19,225.98,6.239]
[1733127627716,26.81376189,226.1,226.03,26.81376189]
[1733127628020,26.81376189,226.11,226.03,26.81376189]
[1733127628218,26.81376189,226.11,225.98,6.239]
[1733127628219,26.81376189,226.11,226.04,26.81376189]
[1733127628421,26.81376189,226.1,226.03,26.81376189]
[1733127628714,26.81376189,226.11,226.04,26.81376189]
[1733127628917,26.81376189,226.08,226.0,26.81376189]
[1733127629224,1.1053,226.19,226.02,26.81376189]
[1733127629527,26.81376189,226.14,226.07,26.81376189]
[1733127629733,26.81376189,226.15,226.07,26.81376189]
[1733127629938,26.81376189,226.17,226.1,26.81376189]
[1733127630238,26.81376189,226.21,226.14,26.81376189]
[1733127630940,26.81376189,226.2,226.13,26.81376189]
[1733127631135,26.81376189,226.21,226.14,26.81376189]
[1733127631435,26.81376189,226.16,226.08,26.81376189]
[1733127631741,5.0,226.18,225.98,6.239]
[1733127632041,4.8637655,226.15,225.98,6.239]
[1733127632409,23.776884,226.14,225.98,6.239]
[1733127632611,20.0,226.11,225.98,6.239]
[1733127632842,26.81376189,225.99,225.9,6.1782]
[1733127633008,26.81376189,225.98,225.91,26.81376189]
[1733127633208,26.81376189,226.0,225.92,26.81376189]
[1733127633619,26.81376189,225.98,225.9,32.99196189]
[1733127633915,24.882584,226.1,225.96,26.81376189]
[1733127633916,26.81376189,226.03,225.96,26.81376189]
[1733127634116,26.81376189,226.01,225.94,26.81376189]
[1733127634533,26.81376189,226.02,225.94,26.81376189]
[1733127634915,26.81376189,226.06,225.99,26.81376189]
[1733127635116,26.81376189,226.04,225.96,26.81376189]
[1733127635330,26.81376189,226.04,225.91,5.88281856]
[1733127635331,26.81376189,225.97,225.9,32.99196189]
[1733127635516,26.81376189,225.97,225.9,6.1782]
[1733127635839,26.81376189,225.94,225.9,6.1782]
[1733127636030,26.81376189,225.95,225.88,26.81376189]
[1733127636235,26.81376189,226.05,225.85,21.2477]
[1733127636437,26.81376189,225.98,225.91,26.81376189]
[1733127636734,1.1057,226.1,225.88,5.0]
[1733127636942,1.1057,226.1,225.89,0.8828341]
[1733127637114,22.5455,226.16,226.04,26.81376189]
[1733127637313,22.5455,226.16,225.91,11.4655]
[1733127637314,26.81376189,226.12,226.05,26.81376189]
[1733127637511,26.81376189,226.11,226.04,26.81376189]
[1733127637817,26.81376189,226.15,226.07,26.81376189]
[1733127638029,26.81376189,226.14,226.06,26.81376189]
[1733127638236,26.81376189,226.13,226.05,26.81376189]
[1733127638533,26.81376189,226.13,226.06,26.81376189]
[1733127638750,26.81376189,226.15,226.07,26.81376189]
[1733127639113,26.81376189,226.13,226.06,26.81376189]
[1733127639419,1.1051,226.22,226.0,20.0852]
[1733127639420,26.81376189,226.07,226.0,21.3817]
[1733127639624,18.8471837,226.02,225.93,15.7269]
[1733127639833,18.8471837,226.02,225.95,26.81376189]
[1733127640028,26.81376189,226.04,225.96,26.81376189]
[1733127640336,26.81376189,226.06,225.98,26.81376189]
[1733127640523,26.81376189,226.04,225.97,26.81376189]
[1733127640718,26.81376189,226.05,225.97,26.81376189]
[1733127641448,26.81376189,226.06,225.98,26.81376189]
[1733127641746,26.81376189,226.03,225.95,26.81376189]
[1733127642616,26.81376189,226.08,226.01,26.81376189]
[1733127642816,26.81376189,226.07,226.0,26.81376189]
[1733127643251,7.5571,226.15,225.95,26.81376189]
[1733127643252,26.81376189,226.03,225.95,26.81376189]
[1733127643429,26.81376189,226.01,225.94,26.81376189]
[1733127643620,40.053484,226.14,225.93,15.7269]
[1733127643621,26.81376189,226.02,225.95,26.81376189]
[1733127643824,26.81376189,226.04,225.96,26.81376189]
[1733127644016,26.81376189,226.05,225.97,26.81376189]
[1733127644217,26.81376189,226.03,225.96,26.81376189]
[1733127644435,26.81376189,226.02,225.95,26.81376189]
[1733127644630,26.81376189,226.05,225.98,26.81376189]
[1733127644836,26.81376189,226.06,225.98,26.81376189]
[1733127645019,26.81376189,226.04,225.96,26.81376189]
[1733127645616,26.81376189,226.04,225.93,15.7269]
[1733127645822,26.81376189,226.05,225.97,26.81376189]
[1733127646019,26.81376189,226.03,225.95,26.81376189]
[1733127646532,26.81376189,226.0,225.93,42.54066189]
[1733127646833,26.81376189,226.01,225.93,42.54066189]
[1733127647544,26.81376189,226.0,225.93,15.7269]
[1733127647725,26.81376189,226.05,225.93,15.7269]
[1733127647726,26.81376189,225.99,225.93,15.7269]
[1733127648360,26.81376189,225.94,225.86,21.3059]
[1733127648642,26.81376189,225.89,225.86,6.2064]
[1733127648842,20.0,226.02,225.86,6.2064]
[1733127649054,27.91966189,226.05,225.86,7.08949138]
[1733127649644,20.0,226.02,225.86,6.2064]
[1733127649846,20.0,226.02,225.87,4.416]
[1733127650223,26.81376189,225.98,225.91,26.81376189]
[1733127650727,26.81376189,225.96,225.86,6.2064]
[1733127651047,26.81376189,225.97,225.91,4.416]
[1733127651220,26.81376189,226.0,225.93,26.81376189]
[1733127651419,26.81376189,226.02,225.95,26.81376189]
[1733127651619,5.0,226.11,225.86,17.2752]
[1733127651824,5.0,226.11,225.9,4.416]
[1733127652552,6.1055,226.13,225.92,4.416]
[1733127652738,26.81376189,226.03,225.96,4.416]
[1733127653059,26.81376189,226.02,225.96,4.416]
[1733127653351,3.3166,226.13,225.96,4.416]
[1733127653352,26.81376189,226.03,225.96,4.416]
[1733127653549,26.81376189,226.04,225.98,4.416]
[1733127653925,26.81376189,225.99,225.94,4.416]
[1733127654134,26.81376189,225.95,225.94,4.416]
[1733127654527,26.81376189,225.95,225.88,4.416]
[1733127654730,26.81376189,225.9,225.88,4.416]
[1733127654933,26.81376189,225.9,225.86,6.2064]
[1733127655140,26.81376189,225.89,225.81,47.06376189]
[1733127655528,26.81376189,225.9,225.83,26.81376189]
[1733127655730,26.81376189,225.86,225.8,6.2215]
[1733127655985,26.81376189,225.82,225.76,4.4294]
[1733127656154,26.81376189,225.77,225.76,4.4294]
[1733127657356,26.81376189,225.77,225.73,21.0]
[1733127657357,53.62752378,225.77,225.73,21.0]
[1733127657548,73.62752378,225.74,225.73,13.3412]
[1733127657752,46.81376189,225.74,225.73,13.3412]
[1733127658130,26.81376189,225.74,225.73,13.3412]
[1733127658440,50.59064589,225.74,225.73,13.3412]
[1733127658641,50.59064589,225.74,225.61,26.81376189]
[1733127658642,5.0,225.67,225.61,26.81376189]
[1733127658842,5.0,225.65,225.59,26.81376189]
[1733127659153,0.88400862,225.66,225.51,0.88420505]
[1733127659154,5.0,225.63,225.57,26.81376189]
[1733127659351,5.88400862,225.63,225.57,26.81376189]
[1733127659769,0.88400862,225.65,225.59,26.81376189]
[1733127659964,32.69777051,225.66,225.59,26.81376189]
[1733127660261,5.0,225.64,225.57,26.81376189]
[1733127660463,5.88400862,225.64,225.57,26.81376189]
[1733127660771,10.0,225.67,225.62,26.81376189]
[1733127660936,5.0,225.67,225.62,26.81376189]
[1733127661132,0.88400862,225.68,225.6,26.81376189]
[1733127661334,0.88400862,225.68,225.63,26.81376189]
[1733127661547,5.0,225.73,225.67,26.81376189]
[1733127661857,5.0,225.79,225.72,26.81376189]
[1733127662034,5.0,225.79,225.68,0.8838593]
[1733127662235,31.81376189,225.77,225.65,20.0]
[1733127662458,5.0,225.73,225.63,0.88366417]
[1733127662647,26.81376189,225.77,225.69,26.81376189]
[1733127662844,5.0,225.76,225.63,0.88366417]
[1733127663152,26.81376189,225.76,225.7,26.81376189]
[1733127663485,26.81376189,225.83,225.71,0.88375723]
[1733127663757,26.81376189,225.83,225.76,26.81376189]
[1733127663967,26.81376189,225.86,225.78,26.81376189]
[1733127664141,26.81376189,225.89,225.82,26.81376189]
[1733127664339,26.81376189,225.94,225.87,26.81376189]
[1733127664561,5.0,225.96,225.87,26.81376189]
[1733127664861,5.88400862,225.95,225.87,26.81376189]
[1733127665062,26.81376189,225.94,225.87,26.81376189]
[1733127665236,26.81376189,225.96,225.89,26.81376189]
[1733127665433,31.81376189,225.97,225.89,26.81376189]
[1733127665664,26.81376189,225.95,225.88,26.81376189]
[1733127665869,26.81376189,225.93,225.83,0.8829632]
[1733127666043,26.81376189,225.96,225.89,26.81376189]
[1733127666562,31.81376189,225.97,225.9,26.81376189]
[1733127666868,26.81376189,225.98,225.91,26.81376189]
[1733127667036,31.81376189,225.98,225.9,26.81376189]
[1733127667240,26.81376189,225.98,225.9,26.81376189]
[1733127667438,26.81376189,225.98,225.91,26.81376189]
[1733127667864,26.81376189,226.0,225.93,26.81376189]
[1733127668045,5.0,226.08,225.99,26.81376189]
[1733127668246,5.88400862,226.11,226.05,26.81376189]
[1733127668453,5.88400862,226.11,225.97,20.0]
[1733127668454,31.81376189,226.16,226.08,26.81376189]
[1733127668679,0.88400862,226.15,226.08,26.81376189]
[1733127668855,5.88400862,226.15,226.08,26.81376189]
[1733127669578,48.64251747,226.18,226.1,43.64251747]
[1733127669756,5.0,226.18,226.12,43.64251747]
[1733127669956,5.0,226.17,226.12,43.64251747]
[1733127670351,5.0,226.18,226.12,43.64251747]
[1733127671006,10.0,226.18,226.12,43.64251747]
[1733127671284,5.0,226.1,226.04,43.64251747]
[1733127671579,43.64251747,226.16,225.83,43.64251747]
[1733127671580,48.64251747,226.07,226.0,43.64251747]
[1733127671746,48.64251747,226.07,225.98,43.64251747]
[1733127671944,5.88400862,226.06,225.98,43.64251747]
[1733127672159,5.0,226.05,225.98,43.64251747]
[1733127672373,5.0,226.08,226.0,43.64251747]
[1733127672554,10.0,226.12,226.05,43.64251747]
[1733127672881,5.88400862,226.12,226.05,43.64251747]
[1733127673089,43.64251747,226.13,226.05,43.64251747]
[1733127673268,5.0,226.13,226.07,43.64251747]
[1733127673572,5.0,226.13,225.96,34.840784]
[1733127673573,5.0,226.13,226.09,43.64251747]
[1733127673748,5.0,226.13,226.07,43.64251747]
[1733127673946,10.0,226.14,226.09,43.64251747]
[1733127674161,5.0,226.14,226.09,43.64251747]
[1733127674581,10.0,226.14,226.09,43.64251747]
[1733127674781,5.0,226.14,226.09,43.64251747]
[1733127674988,48.64251747,226.17,226.09,43.64251747]
[1733127675161,5.0,226.13,226.06,43.64251747]
[1733127675480,5.0,226.14,226.08,43.64251747]
[1733127675655,0.88400862,226.15,226.08,43.64251747]
[1733127675859,0.88400862,226.15,226.09,43.64251747]
[1733127676064,53.64251747,226.17,226.1,43.64251747]
[1733127676372,48.64251747,226.14,226.07,43.64251747]
[1733127676558,0.88400862,226.16,226.01,20.0]
[1733127676559,5.0,226.07,226.01,43.64251747]
[1733127676888,5.0,226.03,225.9,11.0667]
[1733127677062,10.88400862,226.06,225.91,0.88271512]
[1733127677385,5.0,226.11,225.93,70.0]
[1733127677556,0.88400862,226.1,225.94,0.88240256]
[1733127677754,5.0,226.06,225.88,6.0815]
[1733127677962,43.64251747,226.03,225.95,43.64251747]
[1733127678256,5.0,226.04,225.99,43.64251747]
[1733127678457,5.0,226.05,225.98,43.64251747]
[1733127678763,5.0,226.07,226.01,43.64251747]
[1733127678960,5.0,226.05,225.99,43.64251747]
[1733127679170,5.0,226.04,225.99,43.64251747]
[1733127679364,5.0,226.03,225.99,43.64251747]
[1733127679565,5.0,226.07,226.01,43.64251747]
[1733127679873,43.64251747,226.04,225.88,6.0815]
[1733127680086,5.88400862,226.03,225.91,20.0]
[1733127680384,5.0,226.06,225.99,43.64251747]
[1733127681184,10.0,226.09,226.03,43.64251747]
[1733127681489,5.0,226.01,225.93,43.64251747]
[1733127681684,5.88400862,226.0,225.92,43.64251747]
[1733127681881,5.0,226.0,225.95,43.64251747]
[1733127682180,43.64251747,226.02,225.95,43.64251747]
[1733127682385,5.0,226.03,225.97,43.64251747]
[1733127682555,5.0,226.03,225.95,43.64251747]
[1733127682556,0.88400862,226.03,225.95,43.64251747]
[1733127682892,53.64251747,226.02,225.95,43.64251747]
[1733127683094,5.0,226.04,225.97,43.64251747]
[1733127683393,5.0,226.05,225.99,43.64251747]
[1733127683576,10.0,226.05,225.99,43.64251747]
[1733127683766,0.88400862,226.04,225.99,43.64251747]
[1733127683974,5.0,226.02,225.99,43.64251747]
[1733127684286,5.88400862,226.06,225.99,43.64251747]
[1733127684487,5.0,226.05,225.99,43.64251747]
[1733127684981,43.64251747,226.16,225.99,43.64251747]
[1733127685192,56.38171747,226.3,226.16,87.28503494]
[1733127685361,56.38171747,226.3,226.21,43.64251747]
[1733127686170,56.38171747,226.3,226.23,43.64251747]
[1733127686376,12.7392,226.3,226.23,43.64251747]
[1733127687372,43.64251747,226.24,226.16,43.64251747]
[1733127687691,43.64251747,226.22,226.14,43.64251747]
[1733127688064,43.64251747,226.24,226.16,43.64251747]
[1733127688983,43.64251747,226.24,226.17,43.64251747]
[1733127689188,43.64251747,226.27,226.19,43.64251747]
[1733127689370,43.64251747,226.29,226.21,43.64251747]
[1733127689570,43.64251747,226.29,226.22,43.64251747]
[1733127690004,43.64251747,226.29,226.21,43.64251747]
[1733127690690,12.7392,226.3,226.19,43.64251747]
[1733127690691,43.64251747,226.27,226.19,43.64251747]
[1733127691077,43.64251747,226.27,226.2,43.64251747]
[1733127691289,56.38171747,226.3,226.23,43.64251747]
[1733127691497,43.64251747,226.28,226.21,43.64251747]
[1733127691987,43.64251747,226.27,226.19,43.64251747]
[1733127692287,43.64251747,226.27,226.2,43.64251747]
[1733127693080,43.64251747,226.28,226.2,43.64251747]
[1733127693385,43.64251747,226.27,226.19,43.64251747]
[1733127693565,43.64251747,226.22,226.14,43.64251747]
[1733127693771,43.64251747,226.2,226.13,43.64251747]
[1733127694071,23.776884,226.26,226.14,43.64251747]
[1733127694072,43.64251747,226.22,226.14,43.64251747]
[1733127694273,43.64251747,226.18,226.06,11.94113117]
[1733127694466,43.64251747,226.13,226.05,43.64251747]
[1733127694674,13.2292,226.2,225.92,36.5281]
[1733127694675,43.64251747,226.11,226.03,43.64251747]
[1733127694889,43.64251747,226.1,226.04,43.64251747]
[1733127695088,76.09531747,226.16,226.04,43.64251747]
[1733127695089,43.64251747,226.11,226.04,43.64251747]
[1733127695299,43.64251747,226.13,226.05,43.64251747]
[1733127695474,13.2292,226.2,225.97,0.88251352]
[1733127695475,43.64251747,226.17,225.97,0.88251352]
[1733127695789,43.64251747,226.17,226.1,43.64251747]
[1733127696002,13.2292,226.2,226.09,43.64251747]
[1733127696177,43.64251747,226.17,226.09,43.64251747]
[1733127696376,43.64251747,226.19,226.11,43.64251747]
[1733127696700,43.64251747,226.16,226.09,43.64251747]
[1733127696876,43.64251747,226.18,226.1,43.64251747]
[1733127697073,43.64251747,226.2,226.01,81.94325566]
[1733127697269,32.4528,226.23,226.01,81.94325566]
[1733127697472,32.4528,226.23,226.04,20.0]
[1733127697675,32.4528,226.23,226.05,0.88209093]
[1733127698273,43.64251747,226.21,226.13,43.64251747]
[1733127698474,43.64251747,226.23,226.16,43.64251747]
[1733127698716,43.64251747,226.25,226.17,43.64251747]
[1733127698987,12.4481,226.27,226.06,12.1276]
[1733127698988,43.64251747,226.24,226.16,43.64251747]
[1733127699699,43.64251747,226.25,226.18,43.64251747]
[1733127699899,43.64251747,226.24,226.17,43.64251747]
[1733127700106,43.64251747,226.28,226.2,43.64251747]
[1733127700273,43.64251747,226.28,226.21,43.64251747]
[1733127700889,43.64251747,226.28,226.21,48.05851747]
[1733127701082,31.4668,226.3,226.21,48.05851747]
[1733127701083,43.64251747,226.29,226.21,48.05851747]
[1733127701591,43.64251747,226.32,226.26,4.416]
[1733127701791,43.64251747,226.3,226.23,43.64251747]
[1733127702175,43.64251747,226.32,226.24,43.64251747]
[1733127702590,43.64251747,226.35,226.27,43.64251747]
[1733127702792,43.64251747,226.35,226.17,11.93500384]
[1733127702793,43.64251747,226.35,226.28,43.64251747]
[1733127702995,43.64251747,226.33,226.25,48.05851747]
[1733127703205,43.64251747,226.33,226.26,43.64251747]
[1733127703501,43.64251747,226.34,226.27,43.64251747]
[1733127703798,43.64251747,226.35,226.27,43.64251747]
[1733127704000,43.64251747,226.36,226.29,4.416]
[1733127704296,14.1129,226.4,226.31,43.64251747]
[1733127704297,43.64251747,226.39,226.31,43.64251747]
[1733127704500,43.64251747,226.37,226.3,43.64251747]
[1733127704799,43.64251747,226.37,226.29,48.05851747]
[1733127705282,43.64251747,226.39,226.31,43.64251747]
[1733127705483,43.64251747,226.35,226.29,4.416]
[1733127705786,43.64251747,226.39,226.32,43.64251747]
[1733127705993,43.64251747,226.38,226.3,43.64251747]
[1733127706208,43.64251747,226.39,226.33,4.416]
[1733127706402,56.65121747,226.4,226.33,48.05851747]
[1733127706903,13.0087,226.4,226.32,36.38821747]
[1733127707109,13.0087,226.4,226.21,13.74893731]
[1733127707110,43.64251747,226.38,226.31,43.64251747]
[1733127707314,43.64251747,226.39,226.32,4.416]
[1733127707492,43.64251747,226.38,226.31,43.64251747]
[1733127707684,43.64251747,226.39,226.32,43.64251747]
[1733127707880,43.64251747,226.41,226.34,43.64251747]
[1733127708199,43.64251747,226.42,226.35,43.64251747]
[1733127708380,43.64251747,226.41,226.35,4.416]
[1733127708913,43.64251747,226.4,226.35,4.416]
[1733127709306,43.64251747,226.39,226.35,4.416]
[1733127709483,43.64251747,226.36,226.25,43.64251747]
[1733127709688,23.776884,226.35,226.24,43.64251747]
[1733127709889,23.776884,226.38,226.17,0.88179692]
[1733127710301,23.776884,226.38,226.17,5.88179692]
[1733127710505,23.776884,226.38,226.18,4.416]
[1733127710813,43.64251747,226.37,226.31,4.416]
[1733127710987,43.64251747,226.39,226.33,4.416]
[1733127711509,43.64251747,226.4,226.33,48.05851747]
[1733127711720,43.64251747,226.39,226.33,4.416]
[1733127712012,43.64251747,226.41,226.34,48.05851747]
[1733127712402,43.64251747,226.43,226.36,48.05851747]
[1733127712594,76.66191747,226.44,226.38,4.416]
[1733127713287,43.64251747,226.45,226.38,48.05851747]
[1733127713612,26.79255037,226.46,226.41,4.416]
[1733127713810,26.79255037,226.48,226.41,31.20855037]
[1733127713988,30.7458,226.5,226.42,26.79255037]
[1733127714195,26.79255037,226.49,226.43,4.416]
[1733127714925,26.79255037,226.52,226.45,31.20855037]
[1733127715292,26.79255037,226.54,226.47,31.20855037]
[1733127715818,26.79255037,226.56,226.49,31.20855037]
[1733127716110,26.79255037,226.56,226.5,26.79255037]
[1733127716310,39.05225037,226.58,226.51,31.20855037]
[1733127716526,26.79255037,226.61,226.55,4.416]
[1733127716709,27.89565037,226.63,226.57,4.416]
[1733127716890,26.79255037,226.62,226.57,4.416]
[1733127717685,26.79255037,226.62,226.56,4.416]
[1733127718113,32.4897,226.64,226.56,4.416]
[1733127718114,26.79255037,226.57,226.56,4.416]
[1733127718304,26.79255037,226.57,226.44,39.79005037]
[1733127718613,5.0,226.61,226.45,0.88085728]
[1733127718614,23.776884,226.61,226.45,0.88085728]
[1733127718996,23.776884,226.63,226.45,0.88085728]
[1733127719192,23.776884,226.63,226.45,5.29685728]
[1733127719608,32.4897,226.64,226.45,11.92075728]
[1733127719915,43.48214311,226.61,226.54,43.48214311]
[1733127720524,43.48214311,226.64,226.58,43.48214311]
[1733127721189,1.1028,226.68,226.55,43.48214311]
[1733127721392,43.48214311,226.58,226.52,43.48214311]
[1733127721588,43.48214311,226.6,226.53,43.48214311]
[1733127721820,43.48214311,226.57,226.5,43.48214311]
[1733127722031,5.0,226.65,226.44,12.9975]
[1733127722032,23.776884,226.59,226.44,12.9975]
[1733127722398,23.776884,226.55,226.38,43.6091]
[1733127723010,43.48214311,226.45,226.38,55.64844311]
[1733127723199,43.48214311,226.49,226.42,43.48214311]
[1733127723399,43.48214311,226.51,226.44,43.48214311]
[1733127723589,43.48214311,226.48,226.41,43.48214311]
[1733127723794,43.48214311,226.5,226.43,43.48214311]
[1733127724015,43.48214311,226.52,226.45,43.48214311]
[1733127724425,43.48214311,226.55,226.48,43.48214311]
[1733127724725,43.48214311,226.56,226.49,43.48214311]
[1733127724895,43.48214311,226.56,226.39,11.92348749]
[1733127724896,43.48214311,226.59,226.52,43.48214311]
[1733127725204,43.48214311,226.61,226.54,43.48214311]
[1733127725599,43.48214311,226.62,226.55,43.48214311]
[1733127725821,43.48214311,226.61,226.54,43.48214311]
[1733127726025,43.48214311,226.62,226.55,43.48214311]
[1733127726194,43.48214311,226.64,226.57,43.48214311]
[1733127726394,43.48214311,226.63,226.56,43.48214311]
[1733127726613,32.4896,226.69,226.58,43.48214311]
[1733127726808,43.48214311,226.65,226.58,43.48214311]
[1733127727734,43.48214311,226.6,226.53,43.48214311]
[1733127728037,43.48214311,226.54,226.46,43.48214311]
[1733127728199,5.0,226.62,226.45,56.01744311]
[1733127728404,137.7,226.63,226.45,12.5353]
[1733127728607,20.0,226.64,226.45,12.5353]
[1733127729015,23.776884,226.63,226.45,12.5353]
[1733127729329,23.776884,226.61,226.45,12.5353]
[1733127729526,23.776884,226.57,226.39,31.0341]
[1733127729707,43.48214311,226.51,226.44,43.48214311]
[1733127729911,43.48214311,226.52,226.45,47.89814311]
[1733127730118,43.48214311,226.54,226.47,43.48214311]
[1733127730624,43.48214311,226.54,226.46,43.48214311]
[1733127731128,43.48214311,226.53,226.46,43.48214311]
[1733127731723,43.48214311,226.53,226.4,5.29685556]
[1733127731724,43.48214311,226.52,226.4,0.88085556]
[1733127731929,43.48214311,226.42,226.32,31.4989]
[1733127732103,43.48214311,226.39,226.32,74.98104311]
[1733127732309,43.48214311,226.38,226.32,31.4989]
[1733127732511,23.776884,226.43,226.24,13.1815]
[1733127732813,43.48214311,226.36,226.3,4.416]
[1733127733134,43.48214311,226.36,226.29,4.416]
[1733127733303,43.48214311,226.36,226.29,47.89814311]
[1733127734011,43.48214311,226.37,226.3,47.89814311]
[1733127734930,43.48214311,226.38,226.3,43.48214311]
[1733127735119,43.48214311,226.38,226.31,43.48214311]
[1733127735503,43.48214311,226.37,226.3,43.48214311]
[1733127736007,43.48214311,226.39,226.32,43.48214311]
[1733127736226,43.48214311,226.39,226.31,43.48214311]
[1733127736401,43.48214311,226.39,226.32,43.48214311]
[1733127736609,43.48214311,226.36,226.29,43.48214311]
[1733127737321,43.48214311,226.36,226.28,43.48214311]
[1733127737534,43.48214311,226.32,226.25,43.48214311]
[1733127737720,43.48214311,226.38,226.27,43.48214311]
[1733127737721,43.48214311,226.35,226.27,43.48214311]
[1733127737917,43.48214311,226.37,226.3,43.48214311]
[1733127738121,43.48214311,226.38,226.31,43.48214311]
[1733127738433,13.5448,226.44,226.24,13.1815]
[1733127738601,13.5448,226.44,226.25,0.88147412]
[1733127739236,13.5448,226.44,226.26,0.12549]
[1733127739529,13.5448,226.44,226.25,0.88147412]
[1733127739530,43.48214311,226.4,226.32,43.48214311]
[1733127739714,43.48214311,226.39,226.32,43.48214311]
[1733127739925,43.48214311,226.42,226.34,43.48214311]
[1733127740426,43.48214311,226.42,226.35,43.48214311]
[1733127740632,43.48214311,226.44,226.37,43.48214311]
[1733127740930,43.48214311,226.49,226.42,43.48214311]
[1733127741130,43.48214311,226.53,226.45,43.48214311]
[1733127741331,43.48214311,226.53,226.46,43.48214311]
[1733127741534,43.48214311,226.53,226.46,26.7743556]
[1733127741535,26.7743556,226.53,226.46,26.7743556]